bitfinex-derivatives/quotes_ETHF0:USTF0_20250612
["timestamp","ask_amount","ask_price","bid_price","bid_amount"]
[1749742769015,28.97509,2753.9,2753.8,0.0054408]
[1749742770023,0.72609,2753.9,2753.8,0.0054408]
[1749742770420,0.72609,2753.9,2753.8,1.9100508]
[1749742770722,0.72609,2753.9,2753.8,1.9100408]
[1749742771117,3.2078,2754.1,2753.8,1.1839408]
[1749742771425,0.72605,2754.1,2754.0,0.72604]
[1749742772222,23.9831408,2754.3,2754.0,0.72606]
[1749742772420,0.72604,2754.1,2754.0,0.72606]
[1749742772727,23.9831408,2754.3,2753.8,1.1839408]
[1749742772728,23.9831408,2754.3,2754.1,0.72603]
[1749742772930,24.7091308,2754.3,2754.2,1.1883]
[1749742773125,0.72606,2754.0,2753.9,0.6289]
[1749742773325,0.72606,2754.0,2753.9,1.8172]
[1749742773726,0.72609,2753.9,2753.8,0.0054408]
[1749742775028,5.72609,2753.9,2753.8,0.0054408]
[1749742777328,5.72609,2753.9,2753.1,3.2078]
[1749742777329,0.72627,2753.2,2753.1,3.2078]
[1749742777528,23.98027,2753.2,2753.1,3.2078]
[1749742778130,23.98027,2753.2,2753.1,3.9341]
[1749742778433,0.4353,2753.2,2753.1,0.7263]
[1749742779030,0.4353,2753.2,2753.0,0.72632]
[1749742779031,0.72632,2753.1,2753.0,0.72632]
[1749742779330,0.72633,2753.0,2752.9,1.9644808]
[1749742779538,0.72633,2753.0,2752.9,1.2381408]
[1749742780236,0.72632,2753.1,2753.0,0.72632]
[1749742780532,0.72633,2753.0,2752.9,1.9644708]
[1749742780929,0.72633,2753.0,2752.9,1.2381408]
[1749742781130,0.72633,2753.0,2752.9,1.9644908]
[1749742781332,0.72633,2753.0,2752.9,0.0054408]
[1749742781731,0.72633,2753.0,2752.9,1.1811408]
[1749742782536,0.72633,2753.0,2752.9,0.0054408]
[1749742784338,0.4353,2753.2,2753.1,0.7263]
[1749742785133,6.372,2753.9,2753.1,5.0]
[1749742785441,0.7258,2754.1,2754.0,0.72606]
[1749742785830,0.72606,2754.0,2753.9,1.90408]
[1749742786231,1.45185,2754.1,2754.0,0.72606]
[1749742786439,1.45185,2754.1,2754.0,1.90406]
[1749742786635,1.45185,2754.1,2754.0,1.178]
[1749742787638,0.7258,2754.1,2754.0,1.90406]
[1749742790934,0.72604,2754.1,2754.0,1.90406]
[1749742791141,0.72604,2754.1,2754.0,1.178]
[1749742791642,0.72604,2754.1,2754.0,1.90406]
[1749742791840,0.0054408,2754.3,2754.0,4.3858]
[1749742792038,0.0054408,2754.3,2754.2,0.72601]
[1749742793741,0.0054408,2754.3,2754.2,5.72601]
[1749742794434,0.0054408,2754.3,2754.2,0.72601]
[1749742798344,0.0054408,2754.3,2754.1,0.72602]
[1749742798533,0.0054408,2754.3,2754.2,1.99991]
[1749742800036,0.7314208,2754.3,2754.2,1.99991]
[1749742800240,0.0054408,2754.3,2754.2,1.99991]
[1749742802141,0.7314208,2754.3,2754.2,1.2739]
[1749742802344,0.7314208,2754.3,2754.0,3.2078]
[1749742802345,0.72604,2754.1,2754.0,3.2078]
[1749742802538,0.72604,2754.1,2754.0,4.4662]
[1749742804143,0.0054408,2754.3,2754.0,4.4662]
[1749742804144,0.72602,2754.2,2754.0,4.4662]
[1749742804440,0.72603,2754.2,2754.1,0.72601]
[1749742805248,0.72604,2754.1,2754.0,1.98444]
[1749742805847,0.72604,2754.1,2754.0,1.2584]
[1749742806251,0.72606,2754.0,2753.9,0.5979]
[1749742806547,5.0282208,2754.3,2753.7,3.832]
[1749742806548,3.2132408,2754.3,2753.7,5.64735]
[1749742806742,0.72603,2754.2,2754.1,0.72601]
[1749742808252,30.3314408,2754.3,2754.2,0.72601]
[1749742808551,0.0054408,2754.3,2754.2,0.72601]
[1749742811856,0.72604,2754.1,2754.0,5.14946]
[1749742812445,0.72603,2754.2,2754.1,0.72601]
[1749742812643,0.72604,2754.1,2754.0,3.2078]
[1749742812855,0.72611,2753.8,2753.7,3.93392]
[1749742813145,0.72611,2753.8,2753.7,3.2078]
[1749742813344,0.72611,2753.8,2753.7,3.93394]
[1749742814151,0.72611,2753.9,2753.8,0.72608]
[1749742814344,0.6042408,2754.3,2753.8,1.81529]
[1749742814546,0.7314408,2754.3,2754.2,0.72601]
[1749742814744,0.0054408,2754.3,2754.2,0.72601]
[1749742815453,0.7314208,2754.3,2754.2,0.72601]
[1749742815854,0.0054408,2754.3,2754.2,0.72601]
[1749742816148,0.0054408,2754.3,2754.2,3.93381]
[1749742816649,0.7314208,2754.3,2754.2,0.72601]
[1749742817054,0.72604,2754.1,2754.0,1.89865]
[1749742817946,0.72602,2754.2,2754.1,0.72601]
[1749742818153,0.7314408,2754.3,2754.2,0.72601]
[1749742818350,0.0054408,2754.3,2754.2,3.93381]
[1749742820057,0.7314208,2754.3,2754.2,3.93381]
[1749742820251,0.0054408,2754.3,2754.2,3.93381]
[1749742822160,0.0054408,2754.3,2754.2,0.72601]
[1749742822455,0.0054408,2754.3,2754.2,1.97081]
[1749742823456,0.7314208,2754.3,2754.2,1.97081]
[1749742823759,0.0054408,2754.3,2754.2,1.97081]
[1749742824457,0.7314208,2754.3,2754.2,1.97081]
[1749742824853,0.7314208,2754.3,2754.2,0.72601]
[1749742825048,0.72606,2754.1,2754.0,0.72603]
[1749742825254,1.81505,2754.2,2753.8,4.34424194]
[1749742825461,0.72603,2754.2,2754.1,0.72604]
[1749742825753,0.7314308,2754.3,2754.2,0.72601]
[1749742825959,0.0054408,2754.3,2754.2,0.72601]
[1749742826356,0.0054408,2754.3,2754.1,2.02362]
[1749742826562,0.72601,2754.2,2754.1,2.02362]
[1749742826859,0.72601,2754.2,2754.1,0.72602]
[1749742827056,0.7314408,2754.3,2754.2,0.72601]
[1749742827359,0.0054408,2754.3,2754.2,0.72601]
[1749742827558,0.7314208,2754.3,2754.2,0.72601]
[1749742827962,0.0054408,2754.3,2754.2,0.72601]
[1749742828863,0.0054408,2754.3,2754.2,1.31561]
[1749742829259,0.0054408,2754.3,2754.2,0.72601]
[1749742831160,0.72587,2754.8,2754.2,0.72601]
[1749742831161,9.5678,2755.5,2755.3,0.72569]
[1749742831463,10.93099,2755.5,2755.4,0.72569]
[1749742831659,3.8453,2755.5,2755.0,1.81447]
[1749742831964,0.7258,2755.1,2755.0,0.72577]
[1749742832162,0.7258,2755.0,2754.9,0.72581]
[1749742832360,0.72581,2755.0,2754.9,0.72578]
[1749742832961,0.72582,2754.9,2754.8,0.0054408]
[1749742833163,0.72582,2754.9,2754.8,0.7312908]
[1749742833362,0.72582,2755.0,2754.9,0.72581]
[1749742834466,0.72582,2754.9,2754.8,0.0054408]
[1749742834664,5.17882,2754.9,2754.8,0.0054408]
[1749742835069,5.94892,2754.9,2754.8,0.0054408]
[1749742835463,5.94892,2754.9,2754.6,0.7259]
[1749742835464,1.81485,2754.5,2754.1,3.2078]
[1749742835663,0.72598,2754.4,2754.3,0.72596]
[1749742835962,0.72601,2754.2,2754.1,3.93383]
[1749742836166,0.72601,2754.2,2754.1,3.93384]
[1749742836460,0.72601,2754.2,2754.1,3.2078]
[1749742837371,0.72601,2754.2,2754.1,3.93384]
[1749742837965,0.72601,2754.2,2754.1,3.2078]
[1749742838171,0.72606,2754.0,2753.9,0.0054408]
[1749742838570,0.72606,2754.0,2753.9,0.7315308]
[1749742838968,0.72606,2754.0,2753.9,0.0054408]
[1749742839467,0.72604,2754.1,2754.0,0.72603]
[1749742839670,0.601,2754.2,2753.9,0.7315108]
[1749742839671,0.72606,2754.0,2753.9,0.7315108]
[1749742840075,0.72606,2754.0,2753.9,0.0054408]
[1749742840869,0.72606,2754.0,2753.3,3.2078]
[1749742840870,1.81523,2753.9,2753.3,3.2078]
[1749742841174,0.72622,2753.5,2753.4,0.72618]
[1749742841970,0.72618,2753.6,2753.5,0.72617]
[1749742842376,0.72622,2753.5,2753.4,0.7262]
[1749742844780,1.3406008,2753.7,2753.6,0.72617]
[1749742845278,0.7262,2753.6,2753.5,0.72617]
[1749742848078,0.72619,2753.5,2753.4,1.92539]
[1749742848878,0.72619,2753.5,2753.4,1.1992]
[1749742849079,0.72619,2753.5,2753.4,1.92542]
[1749742849277,0.72619,2753.5,2753.4,1.1992]
[1749742849479,0.72619,2753.5,2753.4,1.92542]
[1749742849674,0.72619,2753.5,2753.4,1.1992]
[1749742849872,0.72622,2753.4,2753.3,0.72623]
[1749742850480,0.72622,2753.5,2753.4,0.72618]
[1749742850873,2.4298108,2753.7,2753.3,1.2481]
[1749742851177,0.72622,2753.4,2753.3,1.97433]
[1749742852179,0.72622,2753.5,2753.4,0.7262]
[1749742852379,0.72622,2753.4,2753.3,1.97432]
[1749742853581,0.72622,2753.4,2753.3,1.2481]
[1749742853877,0.72625,2753.3,2753.2,0.72995183]
[1749742854080,0.72625,2753.3,2753.2,1.96835183]
[1749742854271,7.07821,2753.5,2753.4,0.72619]
[1749742854669,6.352,2753.5,2753.4,0.72619]
[1749742854976,0.0054408,2753.7,2753.6,0.72617]
[1749742855475,3.2078,2754.8,2754.2,1.81498]
[1749742855774,3.2078,2754.8,2753.8,3.63058]
[1749742855775,3.2078,2754.8,2754.3,4.4319]
[1749742855969,0.72594,2754.5,2754.3,4.4319]
[1749742856170,0.72594,2754.5,2754.4,1.2384]
[1749742856880,0.72598,2754.3,2754.2,0.7314508]
[1749742857079,0.72598,2754.3,2754.2,0.0054408]
[1749742861282,0.72611,2753.8,2753.7,1.2138]
[1749742861775,0.72611,2753.8,2753.7,1.93994]
[1749742862579,0.72611,2753.9,2753.8,0.72609]
[1749742862877,0.72611,2753.8,2753.7,1.93993]
[1749742863276,0.7261,2753.9,2753.8,0.72609]
[1749742864889,0.72614,2753.7,2753.6,2.4414]
[1749742865183,0.7261,2753.9,2753.8,0.72609]
[1749742865379,0.72611,2753.8,2753.7,1.92622]
[1749742866078,0.7261,2753.9,2753.8,0.72607]
[1749742866291,3.2078,2754.5,2753.8,3.2078]
[1749742866481,0.72609,2754.0,2753.9,0.72607]
[1749742866785,0.72614,2753.7,2753.6,1.2413]
[1749742867174,0.72614,2753.7,2753.6,0.6232]
[1749742867376,0.72614,2753.7,2753.5,3.21148183]
[1749742867377,0.72617,2753.6,2753.5,0.00368183]
[1749742867881,0.72617,2753.6,2753.5,0.72987183]
[1749742868078,0.72617,2753.6,2753.5,0.00368183]
[1749742873589,0.7263,2753.1,2753.0,0.5956]
[1749742874686,0.7263,2753.1,2753.0,1.32193]
[1749742875381,0.0054408,2753.3,2753.2,0.72627]
[1749742875883,0.7316908,2753.3,2753.2,0.72627]
[1749742876383,0.7316908,2753.3,2753.0,0.5956]
[1749742876384,0.7263,2753.1,2753.0,1.3219]
[1749742876588,0.7263,2753.1,2753.0,0.5956]
[1749742876891,0.72635,2752.9,2752.8,4.52976]
[1749742877277,0.72635,2752.9,2752.8,3.2078]
[1749742877485,0.72646,2752.5,2752.4,4.55627]
[1749742877681,0.72646,2752.5,2752.4,3.8298]
[1749742877981,0.72646,2752.5,2752.4,4.55628]
[1749742878596,31.36597,2752.8,2752.5,0.72643]
[1749742878597,0.72645,2752.6,2752.5,0.72643]
[1749742879777,0.72646,2752.5,2752.4,4.55626]
[1749742879977,0.72646,2752.5,2752.4,3.8298]
[1749742880587,0.72646,2752.5,2752.4,4.55628]
[1749742881090,0.72646,2752.5,2752.4,1.34848]
[1749742881284,0.72643,2752.7,2752.6,0.7264]
[1749742881490,0.72646,2752.6,2752.5,0.72644]
[1749742881679,0.72646,2752.6,2752.4,0.622]
[1749742881680,29.55,2752.8,2752.4,0.622]
[1749742881886,3.93418,2752.9,2752.8,0.72638]
[1749742882286,0.4358,2753.1,2752.7,3.2078]
[1749742882488,0.4358,2753.1,2753.0,0.72633]
[1749742882688,0.4358,2753.1,2753.0,3.93413]
[1749742883087,0.4358,2753.1,2753.0,8.93413]
[1749742883285,0.72608,2754.0,2753.0,8.2078]
[1749742883487,9.5518,2754.3,2754.0,0.72604]
[1749742883488,0.72605,2754.1,2754.0,0.72604]
[1749742883681,0.72609,2753.9,2753.8,1.36459]
[1749742884385,0.7314908,2754.1,2754.0,0.72606]
[1749742884690,0.0054408,2754.1,2754.0,0.72606]
[1749742884887,0.7314808,2754.1,2754.0,0.72606]
[1749742885486,0.72609,2754.0,2753.9,0.72607]
[1749742886082,0.72609,2754.0,2753.9,2.01717]
[1749742886288,0.72609,2754.0,2753.9,1.2911]
[1749742887197,0.72609,2754.0,2753.9,2.01719]
[1749742887395,0.7315008,2754.1,2754.0,0.72607]
[1749742887591,0.72607,2754.0,2753.9,2.01718]
[1749742888096,0.7315008,2754.1,2754.0,0.72607]
[1749742888389,0.72607,2754.0,2753.9,2.01718]
[1749742888592,0.7315008,2754.1,2754.0,0.72607]
[1749742888894,0.0054408,2754.1,2754.0,5.14547]
[1749742889090,3.2078,2754.9,2754.2,1.81499]
[1749742889290,5.02242,2754.9,2754.3,5.0453]
[1749742889594,0.72592,2754.6,2754.5,0.72592]
[1749742889791,0.72586,2754.8,2754.7,0.72587]
[1749742889989,3.2078,2754.9,2754.8,0.72586]
[1749742890391,3.93363,2754.9,2754.8,0.72586]
[1749742890596,3.2078,2754.9,2754.6,1.9304]
[1749742890797,0.72587,2754.8,2754.7,2.02068]
[1749742890999,0.72587,2754.8,2754.7,1.2948]
[1749742891296,0.72596,2754.4,2754.3,3.8337]
[1749742891599,0.72591,2754.6,2754.5,0.72591]
[1749742891796,3.2078,2754.9,2754.8,0.72586]
[1749742892002,3.2078,2754.9,2754.4,1.81492]
[1749742892497,0.72589,2754.7,2754.6,0.72589]
[1749742892686,3.2078,2754.9,2754.4,1.2948]
[1749742892885,0.72593,2754.6,2754.5,0.72591]
[1749742893192,3.2078,2754.9,2754.4,1.2948]
[1749742893398,0.7259,2754.7,2754.6,0.7259]
[1749742893596,0.72587,2754.8,2754.7,0.72586]
[1749742894492,0.72592,2754.6,2754.5,0.72591]
[1749742895199,0.72594,2754.5,2754.4,2.02075]
[1749742895603,0.72592,2754.6,2754.5,0.72591]
[1749742896198,0.72594,2754.5,2754.4,2.02075]
[1749742896394,0.72594,2754.5,2754.4,1.2948]
[1749742896702,0.72594,2754.5,2754.4,2.02076]
[1749742897498,0.72591,2754.6,2754.5,0.72592]
[1749742897701,0.72591,2754.6,2754.5,0.72594]
[1749742898503,0.72594,2754.5,2754.4,1.2948]
[1749742900504,0.6176,2754.8,2754.6,0.7259]
[1749742900801,0.72593,2754.6,2754.5,0.72592]
[1749742902701,0.72594,2754.5,2754.4,1.2948]
[1749742903506,0.72594,2754.5,2754.4,2.02076]
[1749742904001,0.6176,2754.8,2754.4,1.2948]
[1749742904194,0.72591,2754.7,2754.6,0.72589]
[1749742904901,0.72594,2754.5,2754.4,1.2948]
[1749742905307,0.72594,2754.5,2754.4,2.02076]
[1749742905609,0.72594,2754.5,2754.4,1.2948]
[1749742905903,0.72594,2754.5,2754.4,2.02076]
[1749742908402,0.72593,2754.7,2754.6,0.72588]
[1749742908604,0.72594,2754.6,2754.5,0.72592]
[1749742910300,3.2078,2754.9,2754.8,0.72586]
[1749742910605,0.7257,2755.5,2755.4,0.72568]
[1749742911004,0.72574,2755.4,2755.3,0.72571]
[1749742911402,0.72568,2755.5,2755.4,0.72567]
[1749742911598,3.93347,2755.6,2755.5,0.72567]
[1749742911803,0.72571,2755.5,2755.4,0.72568]
[1749742912204,0.72573,2755.3,2755.2,0.0054408]
[1749742912804,0.72573,2755.3,2755.2,0.7311608]
[1749742913310,0.72569,2755.5,2755.4,0.72567]
[1749742913605,0.72573,2755.4,2755.3,0.72571]
[1749742914007,0.72573,2755.4,2755.3,1.96861]
[1749742914310,0.72573,2755.4,2755.3,1.2429]
[1749742914808,0.72573,2755.4,2755.3,1.96863]
[1749742915011,0.72573,2755.4,2755.3,1.2429]
[1749742915309,0.72573,2755.4,2755.3,1.96863]
[1749742916406,0.72573,2755.4,2755.3,1.2429]
[1749742917113,0.72573,2755.4,2755.3,1.96863]
[1749742918514,0.72569,2755.5,2755.4,0.72567]
[1749742919011,3.93346,2755.6,2755.5,0.72567]
[1749742919714,3.2078,2755.6,2755.5,1.92837]
[1749742920112,0.0054408,2755.7,2755.6,0.72565]
[1749742920316,0.0054408,2755.7,2755.6,1.32185]
[1749742921515,0.7310608,2755.7,2755.6,1.32185]
[1749742921912,0.72565,2755.6,2755.5,1.2027]
[1749742922623,0.72565,2755.6,2755.5,1.92837]
[1749742922913,0.0054408,2755.7,2755.6,0.72565]
[1749742923114,0.0054408,2755.7,2755.6,1.34025]
[1749742923611,0.0054408,2755.7,2755.6,10.87505]
[1749742923819,3.2078,2756.4,2756.3,0.72546]
[1749742924122,3.2078,2756.4,2755.9,1.8139]
[1749742924310,3.93325,2756.4,2756.3,0.72546]
[1749742926117,0.7255,2756.3,2756.2,0.72547]
[1749742926318,0.72552,2756.1,2756.0,1.1844]
[1749742926511,0.72562,2755.8,2755.7,0.72559]
[1749742926715,0.7256,2755.9,2755.8,0.72558]
[1749742927214,1.3684,2756.2,2756.1,0.72552]
[1749742927613,0.72557,2756.0,2755.9,0.72555]
[1749742928312,0.72562,2755.7,2755.6,5.76763]
[1749742928522,0.72559,2755.9,2755.8,0.72557]
[1749742929216,0.72562,2755.8,2755.7,0.7256]
[1749742929423,0.72562,2755.7,2755.6,0.6146]
[1749742929613,0.72565,2755.6,2755.5,0.6238]
[1749742929813,0.72564,2755.7,2755.6,0.72561]
[1749742930417,0.7257,2755.4,2755.3,3.8421]
[1749742930613,0.7257,2755.4,2755.3,3.93353]
[1749742930812,0.7257,2755.4,2755.3,3.2078]
[1749742931522,3.2078,2755.4,2754.6,3.2078]
[1749742931714,0.72577,2755.2,2754.8,1.81465]
[1749742932019,30.0882,2755.4,2755.0,0.72579]
[1749742932220,0.7258,2755.1,2755.0,0.72579]
[1749742932820,0.72577,2755.2,2755.1,0.72575]
[1749742933518,0.72581,2755.0,2754.9,3.9336]
[1749742933722,0.72581,2755.0,2754.9,0.7258]
[1749742934124,0.7311708,2755.3,2755.2,0.72575]
[1749742934323,0.0054408,2755.3,2755.2,0.72575]
[1749742934923,0.7311708,2755.3,2755.2,0.72575]
[1749742935416,0.0054408,2755.3,2755.2,0.72575]
[1749742936423,0.7311708,2755.3,2755.2,0.72575]
[1749742936627,0.7258,2755.2,2755.1,0.72576]
[1749742937022,0.0054408,2755.3,2755.2,0.72575]
[1749742937424,0.7311708,2755.3,2755.2,0.72575]
[1749742937729,0.7311708,2755.3,2755.1,0.72577]
[1749742937730,0.72575,2755.2,2755.1,0.72577]
[1749742938329,1.81439,2755.2,2754.8,0.0054408]
[1749742938531,0.72583,2754.9,2754.8,0.7312608]
[1749742939230,0.72582,2755.0,2754.9,0.72579]
[1749742939425,0.7258,2755.1,2755.0,0.72576]
[1749742939930,0.72583,2755.0,2754.9,0.72581]
[1749742940628,0.72583,2754.9,2754.8,0.7312908]
[1749742940825,0.72583,2754.9,2754.8,0.0054408]
[1749742941031,27.07763,2754.9,2754.8,0.0054408]
[1749742941330,27.07763,2754.9,2754.0,3.2078]
[1749742941331,1.81468,2754.8,2754.0,3.2078]
[1749742941517,0.72604,2754.2,2754.1,0.72602]
[1749742941723,0.72601,2754.3,2754.2,0.72599]
[1749742941923,0.72604,2754.2,2754.1,0.72603]
[1749742942428,0.72604,2754.1,2754.0,3.93386]
[1749742942623,0.72607,2754.0,2753.9,0.6300408]
[1749742942825,0.72607,2754.0,2753.9,0.0054408]
[1749742943123,0.72606,2754.1,2753.9,0.0054408]
[1749742943325,0.72607,2754.0,2753.9,0.0054408]
[1749742943526,0.72607,2754.0,2753.9,0.7315408]
[1749742944332,0.72603,2754.2,2754.1,0.72602]
[1749742944523,3.2078,2754.3,2753.9,0.0054408]
[1749742944722,3.2078,2754.3,2754.2,0.72602]
[1749742944934,3.93379,2754.3,2754.2,0.72602]
[1749742945529,3.2078,2754.3,2754.2,0.72602]
[1749742945833,3.93379,2754.3,2754.2,0.72602]
[1749742946027,3.2078,2754.3,2754.2,0.72602]
[1749742946229,0.6023,2754.5,2754.1,1.8151]
[1749742946428,0.6023,2754.5,2754.4,0.72596]
[1749742946935,1.32824,2754.5,2754.4,0.72596]
[1749742947434,0.6023,2754.5,2754.4,0.72596]
[1749742947622,1.32824,2754.5,2754.4,0.72596]
[1749742947825,0.6023,2754.5,2754.2,1.7575]
[1749742948027,0.72599,2754.3,2754.2,2.48348]
[1749742948422,0.72598,2754.4,2754.3,0.72596]
[1749742948626,0.72598,2754.4,2754.3,1.92996]
[1749742950229,0.72598,2754.4,2754.3,1.204]
[1749742950535,0.72598,2754.4,2754.3,1.92999]
[1749742951337,0.6023,2754.5,2754.4,0.72596]
[1749742951540,1.32824,2754.5,2754.4,1.90746]
[1749742952230,0.6023,2754.5,2754.4,1.90746]
[1749742952729,23.141,2755.0,2754.9,0.72581]
[1749742952928,3.2132408,2755.3,2754.4,4.3893]
[1749742952929,3.2132408,2755.3,2754.7,1.81472]
[1749742953129,0.72578,2755.2,2755.1,0.72577]
[1749742953336,0.72583,2754.9,2754.8,1.8016]
[1749742953727,0.72583,2754.9,2754.8,1.1815]
[1749742953929,0.72588,2754.7,2754.6,0.7259]
[1749742954138,3.2078,2755.0,2754.4,12.51815]
[1749742954334,3.2078,2755.0,2754.9,0.72583]
[1749742954537,0.7258,2755.1,2755.0,0.72581]
[1749742955234,0.72581,2755.0,2754.9,2.00451]
[1749742955736,0.72581,2755.0,2754.9,2.00452]
[1749742957537,0.72579,2755.1,2755.0,0.72578]
[1749742957833,0.5938,2755.2,2754.9,1.2787]
[1749742957834,0.72577,2755.2,2755.1,0.72577]
[1749742958428,3.2078,2755.2,2754.8,0.72585]
[1749742958639,0.72585,2754.9,2754.8,0.72585]
[1749742959839,0.72585,2754.9,2754.8,1.95085]
[1749742960232,3.2078,2755.2,2754.8,1.225]
[1749742960434,0.72579,2755.1,2755.0,0.72578]
[1749742960740,0.72583,2755.0,2754.9,0.72581]
[1749742962628,3.2078,2755.2,2754.8,1.225]
[1749742962629,0.72583,2754.9,2754.8,1.225]
[1749742963339,0.72583,2754.9,2754.8,1.95086]
[1749742963642,0.72579,2755.1,2755.0,0.72578]
[1749742964741,0.72583,2755.0,2754.9,0.72582]
[1749742965237,0.72583,2754.9,2754.8,1.95084]
[1749742965437,0.72583,2754.9,2754.8,1.225]
[1749742966241,0.72583,2754.9,2754.8,1.95086]
[1749742966543,0.72583,2754.9,2754.1,5.02285]
[1749742966544,0.72596,2754.5,2754.1,5.02285]
[1749742966839,0.72596,2754.4,2754.3,1.93508]
[1749742967941,0.72596,2754.4,2754.3,1.2091]
[1749742968447,0.72607,2754.0,2753.9,0.6298408]
[1749742968635,0.72607,2754.0,2753.9,0.0054408]
[1749742969141,0.72607,2754.0,2753.5,0.72619]
[1749742969142,0.7262,2753.6,2753.5,0.72619]
[1749742969442,1.81525,2753.9,2753.3,3.2078]
[1749742969443,0.72623,2753.4,2753.3,3.2078]
[1749742969643,0.72625,2753.3,2753.2,1.2983]
[1749742969844,5.02338,2753.4,2752.8,0.72637]
[1749742970144,0.72636,2753.0,2752.9,0.72636]
[1749742970334,0.72636,2753.0,2752.9,2.02466]
[1749742970538,0.72636,2753.0,2752.9,1.2983]
[1749742970942,0.72636,2753.0,2752.9,2.02466]
[1749742971143,0.72632,2753.1,2752.9,2.02466]
[1749742971446,0.72633,2753.0,2752.9,2.02466]
[1749742971937,0.72632,2753.1,2752.9,2.02464]
[1749742972142,0.72633,2753.0,2752.9,2.02464]
[1749742972743,0.72632,2753.1,2752.9,2.02464]
[1749742972947,0.6248,2753.3,2752.8,0.0054408]
[1749742973144,0.72636,2752.9,2752.8,0.0054408]
[1749742976539,1.81584,2753.0,2752.1,1.2753]
[1749742976742,0.72653,2752.3,2752.2,0.72653]
[1749742977041,3.6433,2753.2,2752.2,5.0]
[1749742977339,3.6433,2753.2,2753.1,0.72631]
[1749742977745,3.6433,2753.2,2752.8,2.4565]
[1749742978253,0.93012,2753.1,2753.0,0.72633]
[1749742978743,0.72634,2753.0,2752.9,0.72634]
[1749742978940,0.2038,2753.1,2752.9,0.72634]
[1749742978941,0.93013,2753.1,2753.0,0.72633]
[1749742980140,0.93011,2753.1,2753.0,0.72633]
[1749742980338,0.2038,2753.1,2753.0,0.72633]
[1749742980542,0.2038,2753.1,2753.0,5.72633]
[1749742980744,0.0054408,2753.4,2753.3,0.72625]
[1749742981243,3.2078,2753.9,2753.8,0.72612]
[1749742981749,3.2078,2754.3,2753.8,3.2078]
[1749742981947,0.72596,2754.4,2754.3,0.72599]
[1749742982142,0.72596,2754.4,2754.2,0.726]
[1749742982349,0.72597,2754.4,2754.3,0.72598]
[1749742982548,0.72602,2754.2,2754.1,0.0054408]
[1749742987954,0.72602,2754.2,2753.4,0.72622]
[1749742987955,1.81531,2753.8,2753.4,0.72622]
[1749742988153,0.72623,2753.5,2753.4,0.72622]
[1749742988455,0.72624,2753.4,2753.3,0.72624]
[1749742988655,0.72625,2753.3,2753.2,1.2259]
[1749742989346,0.7263,2753.2,2753.1,0.7263]
[1749742989541,0.72627,2753.3,2753.2,0.72627]
[1749742989746,6.288,2753.5,2752.9,0.59]
[1749742989951,0.72629,2753.2,2753.1,0.72629]
[1749742992251,8.10354,2753.5,2752.8,3.2078]
[1749742992451,0.72632,2753.1,2753.0,0.72631]
[1749742992650,0.72632,2753.1,2752.8,4.413]
[1749742992651,3.2078,2753.6,2753.5,0.7262]
[1749742992846,0.0054408,2753.8,2753.7,0.72615]
[1749742993052,0.0054408,2753.8,2753.7,8.93395]
[1749742993249,0.0054408,2753.8,2753.7,5.72615]
[1749742993453,0.0054408,2753.8,2753.7,0.72615]
[1749742993756,0.72619,2753.6,2753.5,0.72617]
[1749742994354,0.72616,2753.7,2753.6,0.72615]
[1749742996551,0.7315708,2753.8,2753.7,0.72615]
[1749742996746,0.72616,2753.7,2753.6,0.72615]
[1749742996953,0.0054408,2753.8,2753.7,0.72615]
[1749742997961,3.2078,2754.1,2754.0,0.72607]
[1749742998759,3.2078,2754.1,2753.9,0.72607]
[1749742998760,0.72608,2754.0,2753.9,0.72607]
[1749742998960,0.72608,2754.0,2753.9,2.00077]
[1749742999165,0.72607,2754.0,2753.9,2.00077]
[1749742999363,3.93386,2754.1,2754.0,0.72607]
[1749742999557,3.93386,2754.1,2754.0,1.2747]
[1749743000058,3.93386,2754.1,2754.0,2.00077]
[1749743000557,3.93386,2754.1,2754.0,1.2747]
[1749743000758,3.93386,2754.1,2754.0,2.00077]
[1749743001762,3.93386,2754.1,2754.0,1.2747]
[1749743003064,3.2078,2754.1,2754.0,2.00077]
[1749743003556,0.0054408,2754.2,2754.1,0.72604]
[1749743003959,0.0054408,2754.2,2754.1,3.93384]
[1749743004765,0.0054408,2754.2,2754.1,4.53144]
[1749743008563,0.0054408,2754.2,2754.1,0.5976]
[1749743008564,0.7314608,2754.2,2754.1,0.5976]
[1749743008868,0.72604,2754.1,2754.0,1.2747]
[1749743009068,1.31084,2754.1,2754.0,1.2747]
[1749743009767,0.72612,2753.8,2753.7,0.0054408]
[1749743010165,0.72612,2753.8,2753.7,0.7315908]
[1749743010762,0.72612,2753.8,2753.7,0.0054408]
[1749743011270,0.72612,2753.8,2753.7,0.7315908]
[1749743011464,0.72612,2753.8,2753.7,0.0054408]
[1749743011967,7.01312,2753.8,2753.7,0.0054408]
[1749743012164,0.72628,2753.2,2753.1,4.5047]
[1749743012465,0.72627,2753.3,2753.2,0.72627]
[1749743012967,0.72628,2753.2,2753.1,1.2969]
[1749743013269,0.72628,2753.2,2753.1,2.02321]
[1749743014066,0.72628,2753.2,2753.1,1.2969]
[1749743014277,0.72628,2753.2,2753.1,2.02321]
[1749743014862,0.72623,2753.4,2753.3,0.72625]
[1749743015068,0.72625,2753.4,2753.3,0.72625]
[1749743015264,7.66052,2753.5,2753.4,0.72623]
[1749743015468,3.8336,2753.6,2753.2,1.2301]
[1749743015469,3.2078,2753.6,2753.5,0.7262]
[1749743015667,3.93397,2753.6,2753.5,0.7262]
[1749743015863,3.2078,2753.6,2753.5,0.7262]